fUSD/lending_fUSD_20260702
["ID","MTS","AMOUNT","RATE_DAILY","PERIOD"]
[426886082,1782983441000,-500.0,0.00028493,2]
[426886094,1782983441000,-3578.97212066,0.000286,2]
[426886097,1782983441000,-1598.05583883,0.0002865,2]
[426886091,1782983441000,-166.73,0.0002855,2]
[426886089,1782983441000,-328.46275027,0.00028493,2]
[426886090,1782983441000,-835.34323141,0.00028526,2]
[426886096,1782983441000,-15730.0,0.000286,7]
[426886087,1782983441000,-500.0,0.00028493,2]
[426886081,1782983441000,-500.0,0.00028493,2]
[426886084,1782983441000,-500.0,0.00028493,2]
[426886083,1782983441000,-500.0,0.00028493,2]
[426886092,1782983441000,-1242.5,0.00028599,7]
[426886161,1782983442000,-154.0,0.00029,4]
[426886165,1782983442000,-151.0,0.00029,7]
[426886168,1782983442000,-151.0,0.00029,7]
[426886169,1782983442000,-151.0,0.00029,7]
[426886162,1782983442000,-154.0,0.00029,4]
[426886154,1782983442000,-1286.986724,0.00029,7]
[426886158,1782983442000,-3854.46235,0.00029,7]
[426886156,1782983442000,-3854.46235,0.00029,7]
[426886155,1782983442000,-171.0,0.00029,2]
[426886157,1782983442000,-3854.46235,0.00029,7]
[426886164,1782983442000,-151.0,0.00029,7]
[426886160,1782983442000,-154.0,0.00029,4]
[426886163,1782983442000,-151.0,0.00029,7]
[426886171,1782983442000,-151.0,0.00029,7]
[426886167,1782983442000,-151.0,0.00029,7]
[426886170,1782983442000,-151.0,0.00029,7]
[426886182,1782983442000,-151.0,0.00029,7]
[426886172,1782983442000,-151.0,0.00029,7]
[426886173,1782983442000,-151.0,0.00029,7]
[426886174,1782983442000,-151.0,0.00029,7]
[426886175,1782983442000,-601.508497,0.00029,7]
[426886176,1782983442000,-601.508497,0.00029,7]
[426886177,1782983442000,-601.508497,0.00029,7]
[426886179,1782983442000,-601.508497,0.00029,7]
[426886178,1782983442000,-153.59958435,0.00029,2]
[426886180,1782983442000,-151.0,0.00029,7]
[426886166,1782983442000,-151.0,0.00029,7]
[426886152,1782983442000,-1286.986724,0.00029,7]
[426886135,1782983442000,-236.201492,0.00029,7]
[426886148,1782983442000,-167.42215,0.00029,7]
[426886181,1782983442000,-151.0,0.00029,7]
[426886134,1782983442000,-151.0,0.00029,7]
[426886127,1782983442000,-290309.87750576,0.00029,5]
[426886126,1782983442000,-186.33,0.00029,7]
[426886133,1782983442000,-151.0,0.00029,7]
[426886132,1782983442000,-151.0,0.00029,7]
[426886128,1782983442000,-1256.62575978,0.00029,7]
[426886129,1782983442000,-150.0,0.00029,7]
[426886131,1782983442000,-164.39336,0.00029,7]
[426886130,1782983442000,-11134.06,0.00029,7]
[426886136,1782983442000,-202.088899,0.00029,7]
[426886137,1782983442000,-202.088899,0.00029,7]
[426886153,1782983442000,-1286.986724,0.00029,7]
[426886140,1782983442000,-151.0,0.00029,7]
[426886138,1782983442000,-202.088899,0.00029,7]
[426886141,1782983442000,-151.0,0.00029,7]
[426886145,1782983442000,-445.729692,0.00029,7]
[426886146,1782983442000,-167.42215,0.00029,7]
[426886144,1782983442000,-445.729692,0.00029,7]
[426886147,1782983442000,-167.42215,0.00029,7]
[426886143,1782983442000,-445.729692,0.00029,7]
[426886142,1782983442000,-445.729692,0.00029,7]
[426886149,1782983442000,-153.406732,0.00029,7]
[426886159,1782983442000,-3854.46235,0.00029,7]
[426886151,1782983442000,-1286.986724,0.00029,7]
[426886150,1782983442000,-167.42215,0.00029,7]
[426886139,1782983442000,-202.088899,0.00029,7]
[426886194,1782983442000,-1012.938534,0.00029,7]
[426886183,1782983442000,-151.0,0.00029,7]
[426886244,1782983442000,-10331.96753627,0.000294,2]
[426886232,1782983442000,-505.57589281,0.00029044,2]
[426886230,1782983442000,-586.15,0.00029018,7]
[426886233,1782983442000,-835.34323141,0.00029074,2]
[426886238,1782983442000,-7866.50173945,0.00029151,2]
[426886237,1782983442000,-163.09,0.00029143,2]
[426886239,1782983442000,-505.57589281,0.00029198,2]
[426886236,1782983442000,-10331.96753627,0.000291,2]
[426886234,1782983442000,-306.84719601,0.00029083,2]
[426886243,1782983442000,-3578.97212066,0.000294,2]
[426886240,1782983442000,-700.99,0.00029294,2]
[426886242,1782983442000,-835.34323141,0.00029348,2]
[426886241,1782983442000,-180.86328756,0.0002934,2]
[426886219,1782983442000,-813.672512,0.00029,7]
[426886246,1782983442000,-17165.1600684,0.00029449,2]
[426886248,1782983442000,-310.0,0.000295,2]
[426886249,1782983442000,-733.0,0.000295,2]
[426886247,1782983442000,-317.0,0.000295,2]
[426886251,1782983442000,-244.56,0.000296,7]
[426886250,1782983442000,-581.88,0.000296,7]
[426886255,1782983442000,-1130.61214767,0.00029639,2]
[426886253,1782983442000,-835.34323141,0.00029622,2]
[426886254,1782983442000,-457.90611043,0.0002963,18]
[426886252,1782983442000,-505.57589281,0.00029608,2]
[426886256,1782983442000,-198.0,0.00029668,10]
[426886189,1782983442000,-151.0,0.00029,7]
[426886257,1782983442000,-591.58,0.00029676,2]
[426886245,1782983442000,-152.619223,0.00029448,2]
[426886213,1782983442000,-813.672512,0.00029,7]
[426886235,1782983442000,-3578.97212066,0.000291,2]
[426886217,1782983442000,-813.672512,0.00029,7]
[426886186,1782983442000,-2019.21306,0.00029,7]
[426886187,1782983442000,-2019.21306,0.00029,7]
[426886184,1782983442000,-2019.21306,0.00029,7]
[426886185,1782983442000,-151.0,0.00029,7]
[426886188,1782983442000,-2019.21306,0.00029,7]
[426886192,1782983442000,-1012.938534,0.00029,7]
[426886191,1782983442000,-151.0,0.00029,7]
[426886190,1782983442000,-151.0,0.00029,7]
[426886193,1782983442000,-1012.938534,0.00029,7]
[426886223,1782983442000,-181.84,0.00029005,30]
[426886206,1782983442000,-151.0,0.00029,7]
[426886197,1782983442000,-1358.479685,0.00029,7]
[426886199,1782983442000,-407.048264,0.00029,7]
[426886207,1782983442000,-151.0,0.00029,7]
[426886196,1782983442000,-1012.938534,0.00029,7]
[426886200,1782983442000,-1358.479685,0.00029,7]
[426886215,1782983442000,-813.672512,0.00029,7]
[426886208,1782983442000,-442.076767,0.00029,7]
[426886227,1782983442000,-1242.5,0.00029018,7]
[426886211,1782983442000,-442.076767,0.00029,7]
[426886210,1782983442000,-442.076767,0.00029,7]
[426886209,1782983442000,-442.076767,0.00029,7]
[426886212,1782983442000,-262.0,0.00029,2]
[426886204,1782983442000,-1358.479685,0.00029,7]
[426886202,1782983442000,-1358.479685,0.00029,7]
[426886203,1782983442000,-407.048264,0.00029,7]
[426886201,1782983442000,-407.048264,0.00029,7]
[426886205,1782983442000,-407.048264,0.00029,7]
[426886300,1782983443000,-12499.99,0.0003,2]
[426886297,1782983443000,-59595.64269131,0.0003,2]
[426886294,1782983443000,-300.0,0.00029999,10]
[426886296,1782983443000,-586.15,0.00029999,7]
[426886293,1782983443000,-1242.5,0.00029999,7]
[426886298,1782983443000,-800.0,0.0003,2]
[426886289,1782983443000,-340.8094864,0.00029927,2]
[426886291,1782983443000,-250.59121503,0.00029999,10]
[426886292,1782983443000,-1242.5,0.00029999,7]
[426886299,1782983443000,-800.0,0.0003,2]
[426886295,1782983443000,-586.15,0.00029999,7]
[426886301,1782983443000,-9999.99,0.0003,2]
[426886326,1782983443000,-25000.0,0.0003,2]
[426886306,1782983443000,-12499.99,0.0003,2]
[426886304,1782983443000,-12499.99,0.0003,2]
[426886307,1782983443000,-12499.99,0.0003,2]
[426886309,1782983443000,-12499.99,0.0003,2]
[426886308,1782983443000,-754.5,0.0003,2]
[426886305,1782983443000,-9999.99,0.0003,2]
[426886313,1782983443000,-12499.99,0.0003,2]
[426886311,1782983443000,-12499.99,0.0003,2]
[426886303,1782983443000,-12499.99,0.0003,2]
[426886314,1782983443000,-2499.97,0.0003,2]
[426886312,1782983443000,-800.0,0.0003,2]
[426886310,1782983443000,-696.39431812,0.0003,15]
[426886287,1782983443000,-200.0,0.000299,10]
[426886302,1782983443000,-800.0,0.0003,2]
[426886290,1782983443000,-300.0,0.00029999,10]
[426886264,1782983443000,-10331.96753627,0.000297,2]
[426886288,1782983443000,-200.0,0.00029925,2]
[426886266,1782983443000,-3701.806,0.00029716,2]
[426886262,1782983443000,-1488.47,0.00029699,2]
[426886258,1782983443000,-250.0,0.00029676,7]
[426886267,1782983443000,-220.685,0.00029716,2]
[426886259,1782983443000,-500.0,0.00029694,18]
[426886265,1782983443000,-700.99,0.00029715,2]
[426886260,1782983443000,-500.0,0.00029694,18]
[426886263,1782983443000,-3578.97212066,0.000297,2]
[426886261,1782983443000,-505.57589281,0.00029694,2]
[426886268,1782983443000,-884.35198706,0.00029739,2]
[426886270,1782983443000,-11134.06,0.000298,7]
[426886269,1782983443000,-186.33,0.000298,7]
[426886286,1782983443000,-835.34323141,0.00029896,2]
[426886273,1782983443000,-500.0,0.00029836,5]
[426886271,1782983443000,-500.0,0.00029836,5]
[426886275,1782983443000,-500.0,0.00029836,5]
[426886274,1782983443000,-500.0,0.00029836,5]
[426886277,1782983443000,-500.0,0.00029836,5]
[426886278,1782983443000,-514.49947123,0.00029836,5]
[426886279,1782983443000,-500.0,0.00029836,5]
[426886276,1782983443000,-500.0,0.00029836,5]
[426886280,1782983443000,-500.0,0.00029836,5]
[426886281,1782983443000,-251.96742602,0.00029836,5]
[426886282,1782983443000,-500.0,0.00029836,5]
[426886285,1782983443000,-150.0,0.00029863,2]
[426886284,1782983443000,-616.0,0.00029836,5]
[426886272,1782983443000,-500.0,0.00029836,5]
[426886315,1782983443000,-12499.99,0.0003,2]
[426886283,1782983443000,-500.0,0.00029836,5]
[426886317,1782983443000,-12499.99,0.0003,2]
[426886350,1782983443000,-1286.986724,0.0003,7]
[426886354,1782983443000,-3854.46235,0.0003,7]
[426886366,1782983443000,-151.0,0.0003,7]
[426886357,1782983443000,-160.716081,0.0003,7]
[426886356,1782983443000,-3854.46235,0.0003,7]
[426886365,1782983443000,-151.0,0.0003,7]
[426886355,1782983443000,-3854.46235,0.0003,7]
[426886358,1782983443000,-220.057134,0.0003,7]
[426886361,1782983443000,-151.0,0.0003,7]
[426886359,1782983443000,-151.0,0.0003,7]
[426886362,1782983443000,-151.0,0.0003,7]
[426886363,1782983443000,-151.0,0.0003,7]
[426886349,1782983443000,-1286.986724,0.0003,7]
[426886360,1782983443000,-151.0,0.0003,7]
[426886368,1782983443000,-155.354817,0.0003,7]
[426886377,1782983443000,-601.508497,0.0003,7]
[426886367,1782983443000,-151.0,0.0003,7]
[426886376,1782983443000,-601.508497,0.0003,7]
[426886369,1782983443000,-151.0,0.0003,7]
[426886375,1782983443000,-601.508497,0.0003,7]
[426886374,1782983443000,-151.0,0.0003,7]
[426886370,1782983443000,-157.108255,0.0003,7]
[426886372,1782983443000,-151.0,0.0003,7]
[426886373,1782983443000,-151.0,0.0003,7]
[426886371,1782983443000,-151.0,0.0003,7]
[426886316,1782983443000,-800.0,0.0003,2]
[426886364,1782983443000,-151.0,0.0003,7]
[426886348,1782983443000,-167.42215,0.0003,7]
[426886378,1782983443000,-601.508497,0.0003,7]
[426886346,1782983443000,-167.42215,0.0003,7]
[426886343,1782983443000,-445.729692,0.0003,7]
[426886319,1782983443000,-2499.98,0.0003,2]
[426886323,1782983443000,-12500.0,0.0003,2]
[426886324,1782983443000,-2500.0,0.0003,2]
[426886322,1782983443000,-10000.0,0.0003,2]
[426886318,1782983443000,-12499.98,0.0003,2]
[426886320,1782983443000,-9999.97,0.0003,2]
[426886321,1782983443000,-12500.0,0.0003,2]
[426886327,1782983443000,-15000.0,0.0003,2]
[426886329,1782983443000,-24999.99,0.0003,2]
[426886334,1782983443000,-202.088899,0.0003,7]
[426886335,1782983443000,-202.088899,0.0003,7]
[426886328,1782983443000,-10000.0,0.0003,2]
[426886325,1782983443000,-10331.96753627,0.0003,2]
[426886338,1782983443000,-151.0,0.0003,7]
[426886341,1782983443000,-445.729692,0.0003,7]
[426886336,1782983443000,-151.0,0.0003,7]
[426886345,1782983443000,-167.42215,0.0003,7]
[426886344,1782983443000,-445.729692,0.0003,7]
[426886347,1782983443000,-167.42215,0.0003,7]
[426886353,1782983443000,-3854.46235,0.0003,7]
[426886351,1782983443000,-1286.986724,0.0003,7]
[426886331,1782983443000,-598289.23457407,0.0003,2]
[426886333,1782983443000,-202.088899,0.0003,7]
[426886330,1782983443000,-12499.99,0.0003,2]
[426886340,1782983443000,-445.729692,0.0003,7]
[426886332,1782983443000,-202.088899,0.0003,7]
[426886352,1782983443000,-1286.986724,0.0003,7]
[426886401,1782983444000,-151.0,0.0003,7]
[426886406,1782983444000,-164.280691,0.0003,7]
[426886403,1782983444000,-151.0,0.0003,7]
[426886409,1782983444000,-1012.938534,0.0003,7]
[426886402,1782983444000,-151.0,0.0003,7]
[426886405,1782983444000,-151.0,0.0003,7]
[426886412,1782983444000,-1012.938534,0.0003,7]
[426886408,1782983444000,-1012.938534,0.0003,7]
[426886413,1782983444000,-12306.31,0.0003,2]
[426886410,1782983444000,-1012.938534,0.0003,7]
[426886404,1782983444000,-151.0,0.0003,7]
[426886411,1782983444000,-1012.938534,0.0003,7]
[426886414,1782983444000,-1012.938534,0.0003,7]
[426886415,1782983444000,-1012.938534,0.0003,7]
[426886420,1782983444000,-1358.479685,0.0003,7]
[426886397,1782983444000,-2019.21306,0.0003,7]
[426886422,1782983444000,-407.048264,0.0003,7]
[426886407,1782983444000,-1012.938534,0.0003,7]
[426886399,1782983444000,-2019.21306,0.0003,7]
[426886386,1782983444000,-151.0,0.0003,7]
[426886400,1782983444000,-2019.21306,0.0003,7]
[426886421,1782983444000,-1358.479685,0.0003,7]
[426886385,1782983444000,-151.0,0.0003,7]
[426886380,1782983444000,-601.508497,0.0003,7]
[426886381,1782983444000,-601.508497,0.0003,7]
[426886389,1782983444000,-151.0,0.0003,7]
[426886379,1782983444000,-601.508497,0.0003,7]
[426886382,1782983444000,-601.508497,0.0003,7]
[426886383,1782983444000,-151.0,0.0003,7]
[426886396,1782983444000,-2019.21306,0.0003,7]
[426886384,1782983444000,-151.0,0.0003,7]
[426886388,1782983444000,-151.0,0.0003,7]
[426886391,1782983444000,-2019.21306,0.0003,7]
[426886390,1782983444000,-151.0,0.0003,7]
[426886394,1782983444000,-159.12831,0.0003,7]
[426886393,1782983444000,-151.0,0.0003,7]
[426886392,1782983444000,-2019.21306,0.0003,7]
[426886395,1782983444000,-2019.21306,0.0003,7]
[426886398,1782983444000,-2019.21306,0.0003,7]
[426886387,1782983444000,-151.0,0.0003,7]
[426886418,1782983444000,-407.048264,0.0003,7]
[426886441,1782983444000,-442.076767,0.0003,7]
[426886419,1782983444000,-407.048264,0.0003,7]
[426886446,1782983444000,-813.672512,0.0003,7]
[426886445,1782983444000,-813.672512,0.0003,7]
[426886442,1782983444000,-442.076767,0.0003,7]
[426886448,1782983444000,-372.49695097,0.00030071,2]
[426886449,1782983444000,-5864.50644178,0.00030071,2]
[426886451,1782983444000,-666.0,0.00030089,10]
[426886456,1782983444000,-586.15,0.00030089,7]
[426886450,1782983444000,-300.0,0.00030088,10]
[426886453,1782983444000,-56573.88,0.00030089,2]
[426886452,1782983444000,-300.0,0.00030089,10]
[426886454,1782983444000,-1242.5,0.00030089,7]
[426886457,1782983444000,-586.15,0.00030089,7]
[426886455,1782983444000,-1242.5,0.00030089,7]
[426886458,1782983444000,-304405.97258453,0.0003009,2]
[426886459,1782983444000,-500.0,0.00025221,2]
[426886460,1782983444000,-500.0,0.00025731,2]
[426886461,1782983444000,-339.46704286,0.00026799,2]
[426886416,1782983444000,-1358.479685,0.0003,7]
[426886443,1782983444000,-180.86328756,0.0003,2]
[426886447,1782983444000,-813.672512,0.0003,7]
[426886439,1782983444000,-442.076767,0.0003,7]
[426886417,1782983444000,-1358.479685,0.0003,7]
[426886423,1782983444000,-407.048264,0.0003,7]
[426886425,1782983444000,-1358.479685,0.0003,7]
[426886427,1782983444000,-407.048264,0.0003,7]
[426886426,1782983444000,-407.048264,0.0003,7]
[426886428,1782983444000,-1358.479685,0.0003,7]
[426886424,1782983444000,-1358.479685,0.0003,7]
[426886444,1782983444000,-813.672512,0.0003,7]
[426886429,1782983444000,-1358.479685,0.0003,7]
[426886430,1782983444000,-407.048264,0.0003,7]
[426886431,1782983444000,-407.048264,0.0003,7]
[426886434,1782983444000,-184.178192,0.0003,7]
[426886435,1782983444000,-442.076767,0.0003,7]
[426886436,1782983444000,-442.076767,0.0003,7]
[426886438,1782983444000,-442.076767,0.0003,7]
[426886437,1782983444000,-442.076767,0.0003,7]
[426886433,1782983444000,-151.0,0.0003,7]
[426886440,1782983444000,-442.076767,0.0003,7]
[426886432,1782983444000,-151.0,0.0003,7]
[426886470,1782983445000,-480.10728466,0.00026799,2]
[426886462,1782983445000,-187.76,0.00024658,2]
[426886463,1782983445000,-160.53295714,0.00026799,2]
[426886467,1782983445000,-500.0,0.00026799,2]
[426886464,1782983445000,-500.0,0.00026799,2]
[426886465,1782983445000,-500.0,0.00026799,2]
[426886466,1782983445000,-500.0,0.00026799,2]
[426886474,1782983445000,-774.79148828,0.00027397,10]
[426886472,1782983445000,-500.0,0.00026799,2]
[426886468,1782983445000,-500.0,0.00026799,2]
[426886469,1782983445000,-19.89271534,0.00026799,2]
[426886471,1782983445000,-500.0,0.00026799,2]
[426886473,1782983445000,-539.06933997,0.00027397,10]
[426886496,1782983446000,-300.0,0.00030099,10]
[426886502,1782983446000,-883.62,0.000301,14]
[426886500,1782983446000,-109470.71964013,0.000301,7]
[426886501,1782983446000,-15000.0,0.000301,2]
[426886503,1782983446000,-202.088899,0.000301,7]
[426886506,1782983446000,-202.088899,0.000301,7]
[426886518,1782983446000,-1286.986724,0.000301,7]
[426886516,1782983446000,-1286.986724,0.000301,7]
[426886517,1782983446000,-1286.986724,0.000301,7]
[426886512,1782983446000,-167.42215,0.000301,7]
[426886511,1782983446000,-445.729692,0.000301,7]
[426886498,1782983446000,-598.33761562,0.00030099,2]
[426886510,1782983446000,-445.729692,0.000301,7]
[426886507,1782983446000,-151.0,0.000301,7]
[426886509,1782983446000,-445.729692,0.000301,7]
[426886513,1782983446000,-167.42215,0.000301,7]
[426886515,1782983446000,-167.42215,0.000301,7]
[426886514,1782983446000,-167.42215,0.000301,7]
[426886521,1782983446000,-3854.46235,0.000301,7]
[426886505,1782983446000,-202.088899,0.000301,7]
[426886508,1782983446000,-445.729692,0.000301,7]
[426886497,1782983446000,-300.0,0.00030099,10]
[426886504,1782983446000,-202.088899,0.000301,7]
[426886478,1782983446000,-637.025462,0.00029,7]
[426886477,1782983446000,-1803.0,0.00028,2]
[426886479,1782983446000,-151.0,0.00029,7]
[426886476,1782983446000,-2308.93917175,0.00027397,10]
[426886480,1782983446000,-637.025462,0.00029,7]
[426886492,1782983446000,-251.685677,0.0003009,2]
[426886483,1782983446000,-17165.1600684,0.0002999,2]
[426886481,1782983446000,-151.0,0.00029,7]
[426886485,1782983446000,-151.0,0.0003,7]
[426886494,1782983446000,-151.0,0.0003009,7]
[426886482,1782983446000,-637.025462,0.00029,7]
[426886487,1782983446000,-212.378489,0.0003,7]
[426886486,1782983446000,-637.025462,0.0003,7]
[426886488,1782983446000,-637.025462,0.0003,7]
[426886489,1782983446000,-3835.36949885,0.0003009,2]
[426886490,1782983446000,-126131.49745897,0.0003009,2]
[426886491,1782983446000,-151.0,0.0003009,2]
[426886495,1782983446000,-151.0,0.0003009,7]
[426886493,1782983446000,-151.0,0.0003009,7]
[426886519,1782983446000,-1286.986724,0.000301,7]
[426886484,1782983446000,-637.025462,0.0003,7]
[426886524,1782983446000,-151.0,0.000301,7]
[426886499,1782983446000,-252.0,0.000301,7]
[426886523,1782983446000,-3854.46235,0.000301,7]
[426886545,1782983446000,-1012.938534,0.000301,7]
[426886550,1782983446000,-1358.479685,0.000301,7]
[426886553,1782983446000,-407.048264,0.000301,7]
[426886554,1782983446000,-1358.479685,0.000301,7]
[426886552,1782983446000,-1358.479685,0.000301,7]
[426886551,1782983446000,-407.048264,0.000301,7]
[426886556,1782983446000,-151.0,0.000301,7]
[426886555,1782983446000,-407.048264,0.000301,7]
[426886559,1782983446000,-442.076767,0.000301,7]
[426886548,1782983446000,-1358.479685,0.000301,7]
[426886558,1782983446000,-442.076767,0.000301,7]
[426886564,1782983446000,-813.672512,0.000301,7]
[426886561,1782983446000,-813.672512,0.000301,7]
[426886560,1782983446000,-442.076767,0.000301,7]
[426886563,1782983446000,-813.672512,0.000301,7]
[426886567,1782983446000,-637.025462,0.000301,7]
[426886566,1782983446000,-151.0,0.000301,7]
[426886565,1782983446000,-637.025462,0.000301,7]
[426886568,1782983446000,-637.025462,0.000301,7]
[426886522,1782983446000,-3854.46235,0.000301,7]
[426886562,1782983446000,-813.672512,0.000301,7]
[426886544,1782983446000,-1012.938534,0.000301,7]
[426886557,1782983446000,-442.076767,0.000301,7]
[426886540,1782983446000,-2019.21306,0.000301,7]
[426886531,1782983446000,-601.508497,0.000301,7]
[426886542,1782983446000,-151.0,0.000301,7]
[426886528,1782983446000,-151.0,0.000301,7]
[426886525,1782983446000,-151.0,0.000301,7]
[426886526,1782983446000,-151.0,0.000301,7]
[426886530,1782983446000,-601.508497,0.000301,7]
[426886520,1782983446000,-3854.46235,0.000301,7]
[426886529,1782983446000,-151.0,0.000301,7]
[426886533,1782983446000,-601.508497,0.000301,7]
[426886534,1782983446000,-151.0,0.000301,7]
[426886527,1782983446000,-151.0,0.000301,7]
[426886536,1782983446000,-151.0,0.000301,7]
[426886535,1782983446000,-151.0,0.000301,7]
[426886537,1782983446000,-151.0,0.000301,7]
[426886539,1782983446000,-2019.21306,0.000301,7]
[426886549,1782983446000,-407.048264,0.000301,7]
[426886541,1782983446000,-2019.21306,0.000301,7]
[426886543,1782983446000,-151.0,0.000301,7]
[426886546,1782983446000,-1012.938534,0.000301,7]
[426886532,1782983446000,-601.508497,0.000301,7]
[426886538,1782983446000,-2019.21306,0.000301,7]
[426886547,1782983446000,-1012.938534,0.000301,7]
[426886601,1782983447000,-2000.0,0.00030136,2]
[426886613,1782983447000,-2000.0,0.00030136,2]
[426886609,1782983447000,-2000.0,0.00030136,2]
[426886607,1782983447000,-2000.0,0.00030136,2]
[426886606,1782983447000,-2000.0,0.00030136,2]
[426886603,1782983447000,-2000.0,0.00030136,2]
[426886608,1782983447000,-2000.0,0.00030136,2]
[426886602,1782983447000,-2000.0,0.00030136,2]
[426886604,1782983447000,-2000.0,0.00030136,2]
[426886612,1782983447000,-2000.0,0.00030136,2]
[426886605,1782983447000,-2000.0,0.00030136,2]
[426886615,1782983447000,-2000.0,0.00030136,2]
[426886631,1782983447000,-2000.0,0.00030136,2]
[426886616,1782983447000,-2000.0,0.00030136,2]
[426886620,1782983447000,-2000.0,0.00030136,2]
[426886614,1782983447000,-2000.0,0.00030136,2]
[426886610,1782983447000,-2000.0,0.00030136,2]
[426886618,1782983447000,-2000.0,0.00030136,2]
[426886617,1782983447000,-2000.0,0.00030136,2]
[426886619,1782983447000,-2000.0,0.00030136,2]
[426886630,1782983447000,-2000.0,0.00030136,2]
[426886622,1782983447000,-2000.0,0.00030136,2]
[426886621,1782983447000,-2000.0,0.00030136,2]
[426886623,1782983447000,-2000.0,0.00030136,2]
[426886600,1782983447000,-2000.0,0.00030136,2]
[426886611,1782983447000,-2000.0,0.00030136,2]
[426886599,1782983447000,-2000.0,0.00030136,2]
[426886574,1782983447000,-300.0,0.00030135,10]
[426886595,1782983447000,-2000.0,0.00030136,2]
[426886571,1782983447000,-163.9566741,0.0003011,5]
[426886570,1782983447000,-150.0,0.0003011,5]
[426886569,1782983447000,-150.0,0.0003011,5]
[426886573,1782983447000,-300.0,0.00030135,10]
[426886572,1782983447000,-12500.0,0.00030125,2]
[426886579,1782983447000,-1242.58872663,0.00030135,7]
[426886575,1782983447000,-1242.5,0.00030135,7]
[426886576,1782983447000,-1242.5,0.00030135,7]
[426886577,1782983447000,-1242.5,0.00030135,7]
[426886624,1782983447000,-2000.0,0.00030136,2]
[426886581,1782983447000,-586.15,0.00030135,7]
[426886582,1782983447000,-586.15,0.00030135,7]
[426886580,1782983447000,-586.15,0.00030135,7]
[426886584,1782983447000,-586.15,0.00030135,7]
[426886586,1782983447000,-2000.0,0.00030136,2]
[426886589,1782983447000,-2000.0,0.00030136,2]
[426886588,1782983447000,-2000.0,0.00030136,2]
[426886587,1782983447000,-2000.0,0.00030136,2]
[426886590,1782983447000,-2000.0,0.00030136,2]
[426886594,1782983447000,-2000.0,0.00030136,2]
[426886593,1782983447000,-2000.0,0.00030136,2]
[426886591,1782983447000,-2000.0,0.00030136,2]
[426886585,1782983447000,-586.33476623,0.00030135,7]
[426886596,1782983447000,-2000.0,0.00030136,2]
[426886597,1782983447000,-2000.0,0.00030136,2]
[426886598,1782983447000,-2000.0,0.00030136,2]
[426886626,1782983447000,-2000.0,0.00030136,2]
[426886578,1782983447000,-1242.5,0.00030135,7]
[426886625,1782983447000,-2000.0,0.00030136,2]
[426886658,1782983447000,-500.0,0.00030136,30]
[426886660,1782983447000,-500.0,0.00030136,30]
[426886661,1782983447000,-500.0,0.00030136,30]
[426886663,1782983447000,-500.0,0.00030136,30]
[426886665,1782983447000,-500.0,0.00030136,30]